bitfinex-derivatives/quotes_BNBF0:USTF0_20250807
["timestamp","ask_amount","ask_price","bid_price","bid_amount"]
[1754600282529,0.86169844,781.49,781.31,3.145]
[1754600282731,0.86169844,781.48,781.31,3.145]
[1754600282932,1.021,781.51,781.31,3.145]
[1754600283130,0.86171017,781.5,781.31,3.145]
[1754600283328,0.86171017,781.49,781.31,3.145]
[1754600283626,0.86171017,781.48,781.31,3.145]
[1754600283835,0.86171017,781.47,781.31,3.145]
[1754600284030,1.021,781.51,781.31,3.145]
[1754600284232,0.8617633,781.5,781.31,3.145]
[1754600284534,0.8617633,781.49,781.31,3.145]
[1754600284730,0.8617633,781.48,781.31,3.145]
[1754600284935,0.8617633,781.47,781.31,3.145]
[1754600285234,0.8617633,781.46,781.31,3.145]
[1754600285436,1.021,781.51,781.31,3.145]
[1754600287339,0.86227355,781.87,781.31,3.145]
[1754600287633,0.862064,781.86,781.31,3.145]
[1754600287937,0.862064,781.85,781.31,3.145]
[1754600288237,0.862064,781.84,781.31,3.145]
[1754600288537,0.86227355,781.87,781.31,3.145]
[1754600288538,0.862064,781.83,781.31,3.145]
[1754600288736,0.862064,781.82,781.31,3.145]
[1754600289034,0.862064,781.81,781.31,3.145]
[1754600289236,0.862064,781.8,781.31,3.145]
[1754600289433,0.862064,781.79,781.31,3.145]
[1754600290338,0.862064,781.79,781.31,2.051]
[1754600291940,0.886,781.8,781.31,2.051]
[1754600292236,0.8623751,781.79,781.31,2.051]
[1754600292440,0.8623751,781.78,781.31,2.051]
[1754600292641,0.86245706,781.77,781.31,2.051]
[1754600292940,0.86245706,781.76,781.31,2.051]
[1754600293141,0.86245706,781.75,781.31,2.051]
[1754600293341,0.86245706,781.74,781.31,2.051]
[1754600293541,0.86245706,781.73,781.31,2.051]
[1754600293741,0.886,781.8,781.31,2.051]
[1754600293742,0.86245706,781.72,781.32,0.991]
[1754600294037,0.86245706,781.71,781.32,0.991]
[1754600294241,0.86245706,781.7,781.32,0.991]
[1754600294438,0.86245706,781.69,781.32,0.991]
[1754600294642,0.86245706,781.68,781.32,0.991]
[1754600294840,0.86245706,781.67,781.32,0.991]
[1754600295044,0.86248832,781.66,781.32,0.991]
[1754600295340,0.86248832,781.65,781.32,0.991]
[1754600295543,0.86248832,781.64,781.32,0.991]
[1754600295840,0.86248832,781.63,781.32,0.991]
[1754600296044,0.86248832,781.62,781.32,0.991]
[1754600296244,0.86248832,781.61,781.32,0.991]
[1754600296544,0.86248832,781.6,781.32,0.991]
[1754600296741,0.86248832,781.59,781.32,0.991]
[1754600296946,0.86248832,781.58,781.32,0.991]
[1754600297145,0.86248832,781.57,781.32,0.991]
[1754600297442,0.86248832,781.56,781.32,0.991]
[1754600297645,0.86248832,781.55,781.32,0.991]
[1754600297847,0.86248832,781.54,781.32,0.991]
[1754600298048,0.86244269,781.53,781.32,0.991]
[1754600298345,0.86244269,781.52,781.32,0.991]
[1754600298542,0.886,781.8,781.32,0.991]
[1754600298543,0.86244269,781.51,781.32,0.991]
[1754600298743,0.86244269,781.5,781.32,0.991]
[1754600298942,0.86244269,781.49,781.32,0.991]
[1754600299144,0.86244269,781.48,781.32,0.991]
[1754600299343,0.86244269,781.47,781.32,0.991]
[1754600299547,0.86244269,781.46,781.32,0.991]
[1754600299747,0.86244269,781.45,781.32,0.991]
[1754600299949,0.86244269,781.44,781.32,0.991]
[1754600300146,0.86244269,781.43,781.32,0.991]
[1754600300350,0.86244269,781.42,781.32,0.991]
[1754600300649,0.86227355,781.66,781.32,0.991]
[1754600300950,0.86242982,781.65,781.32,0.991]
[1754600301147,0.86242982,781.64,781.32,0.991]
[1754600301450,0.86242982,781.63,781.32,0.991]
[1754600301647,0.86227355,781.59,781.32,0.991]
[1754600301847,0.86242998,781.58,781.32,0.991]
[1754600302051,0.86242998,781.57,781.32,0.991]
[1754600302253,0.86242998,781.56,781.32,0.991]
[1754600302450,0.86242998,781.55,781.32,0.991]
[1754600302750,0.86242998,781.54,781.32,0.991]
[1754600302952,0.86242998,781.53,781.32,0.991]
[1754600303154,0.86242998,781.52,781.32,0.991]
[1754600303450,0.86242998,781.51,781.32,0.991]
[1754600303649,0.86242998,781.5,781.32,0.991]
[1754600303853,0.86242998,781.49,781.32,0.991]
[1754600304053,0.86242998,781.48,781.32,0.991]
[1754600304354,0.86242998,781.47,781.32,0.991]
[1754600304554,0.86242998,781.46,781.32,0.991]
[1754600304753,0.86242998,781.45,781.32,0.991]
[1754600305053,0.86242998,781.44,781.32,0.991]
[1754600305254,0.86242998,781.43,781.32,0.991]
[1754600305454,0.86242998,781.42,781.32,0.991]
[1754600305654,0.86242998,781.41,781.32,0.991]
[1754600305854,0.86242998,781.4,781.32,0.991]
[1754600306054,0.86242998,781.39,781.32,0.991]
[1754600306255,0.86242998,781.38,781.32,0.991]
[1754600306554,0.86242998,781.37,781.32,0.991]
[1754600306853,0.86227355,781.56,781.32,0.991]
[1754600307051,0.86240389,781.55,781.32,0.991]
[1754600307250,0.86240389,781.54,781.32,0.991]
[1754600307454,0.86240389,781.53,781.32,0.991]
[1754600307653,0.86240389,781.52,781.32,0.991]
[1754600307950,0.86240389,781.51,781.32,0.991]
[1754600308154,0.86240389,781.5,781.32,0.991]
[1754600308354,0.86240389,781.49,781.32,0.991]
[1754600308654,0.86240389,781.48,781.32,0.991]
[1754600308954,0.86240389,781.47,781.32,0.991]
[1754600309155,0.86240389,781.46,781.32,0.991]
[1754600309356,0.86240389,781.45,781.32,0.991]
[1754600309556,0.86240389,781.44,781.32,0.991]
[1754600309757,0.86227355,781.55,781.32,0.991]
[1754600309954,0.8623696,781.54,781.32,0.991]
[1754600310153,0.8623696,781.53,781.32,0.991]
[1754600310358,0.8623696,781.52,781.32,0.991]
[1754600310657,0.86236692,781.51,781.32,0.991]
[1754600310854,0.86236692,781.5,781.32,0.991]
[1754600311059,0.86236692,781.49,781.32,0.991]
[1754600311259,0.86236692,781.48,781.32,0.991]
[1754600311556,0.86236692,781.47,781.32,0.991]
[1754600311759,0.86236692,781.46,781.32,0.991]
[1754600311954,0.86236692,781.45,781.32,0.991]
[1754600312156,0.86236692,781.44,781.32,0.991]
[1754600312359,0.86236692,781.43,781.32,0.991]
[1754600312559,0.86236692,781.42,781.32,0.991]
[1754600312759,0.86227355,781.51,781.32,0.991]
[1754600312760,0.86236692,781.41,781.32,0.991]
[1754600312961,0.86236692,781.4,781.32,0.991]
[1754600313161,0.86236692,781.39,781.32,0.991]
[1754600313358,0.86236692,781.38,781.32,0.991]
[1754600317165,1.093,781.39,781.32,0.991]
[1754600328171,0.86302251,781.38,781.32,0.991]
[1754600328371,0.86302251,781.37,781.32,0.991]
[1754600328572,0.86302251,781.36,781.28,0.832]
[1754600328871,1.093,781.39,781.28,0.832]
[1754600329069,0.86326339,781.38,781.28,0.832]
[1754600329370,0.86326339,781.37,781.28,0.832]
[1754600329572,0.86326339,781.36,781.28,0.832]
[1754600329772,0.86326339,781.35,781.28,0.832]
[1754600330072,0.86326339,781.34,781.28,0.832]
[1754600330269,0.86326339,781.33,781.28,0.832]
[1754600330572,0.86326339,781.32,781.28,0.832]
[1754600330770,0.86326339,781.31,781.28,0.832]
[1754600330973,0.86326339,781.3,781.28,0.832]
[1754600331175,0.86326339,781.29,781.28,0.832]
[1754600334576,1.093,781.39,781.28,0.832]
[1754600334777,0.86100248,781.38,781.28,0.832]
[1754600335074,0.86100248,781.37,781.28,0.832]
[1754600335277,0.86100248,781.36,781.28,0.832]
[1754600335477,0.86100248,781.35,781.28,0.832]
[1754600335678,0.86100248,781.34,781.28,0.832]
[1754600335878,0.86100248,781.33,781.28,0.832]
[1754600336078,0.86100248,781.32,781.28,0.832]
[1754600336274,1.093,781.39,781.28,0.832]
[1754600336275,0.86100248,781.31,781.28,0.832]
[1754600336579,1.093,781.39,781.28,0.832]
[1754600336779,0.86078056,781.38,781.28,0.832]
[1754600336977,1.093,781.39,781.28,0.832]
[1754600336978,0.86078056,781.37,781.28,0.832]
[1754600337178,0.86078056,781.36,781.28,0.832]
[1754600337375,0.86078056,781.35,781.28,0.832]
[1754600337579,0.86078056,781.34,781.28,0.832]
[1754600337779,0.86078056,781.33,781.28,0.832]
[1754600337975,0.86078056,781.32,781.28,0.832]
[1754600338175,0.86078056,781.31,781.28,0.832]
[1754600338475,0.86059266,781.3,781.28,0.832]
[1754600338676,1.093,781.39,781.28,0.832]
[1754600338979,0.86059266,781.38,781.28,0.832]
[1754600339175,0.86059266,781.37,781.28,0.832]
[1754600339380,0.86059266,781.36,781.28,0.832]
[1754600339581,0.86059266,781.35,781.28,0.832]
[1754600339884,0.86059266,781.34,781.28,0.832]
[1754600340078,1.093,781.39,781.28,0.832]
[1754600340079,0.86059266,781.33,781.28,0.832]
[1754600340281,0.86059266,781.32,781.28,0.832]
[1754600340579,0.86059266,781.31,781.28,0.832]
[1754600340781,0.86059266,781.3,781.28,0.832]
[1754600340978,0.86059266,781.29,781.28,0.832]
[1754600344684,0.86067464,781.29,781.28,0.832]
[1754600350487,0.85998208,781.29,781.28,0.832]
[1754600353593,0.85970556,781.29,781.28,0.832]
[1754600357698,0.698,781.35,781.28,0.832]
[1754600361596,0.698,781.35,781.28,1.577]
[1754600362601,0.85935209,781.34,781.28,1.577]
[1754600362801,0.85935209,781.33,781.28,1.577]
[1754600363101,0.698,781.35,781.28,1.577]
[1754600363302,0.85935449,781.34,781.28,1.577]
[1754600363599,0.85935449,781.33,781.28,1.577]
[1754600363798,0.698,781.35,781.28,1.577]
[1754600364104,0.85939183,781.34,781.28,1.577]
[1754600364399,0.698,781.35,781.28,1.577]
[1754600366501,0.698,781.35,781.28,0.745]
[1754600414541,0.698,781.35,781.18,1.951]
[1754600414945,1.0792435,782.02,781.18,1.951]
[1754600415244,0.85546356,782.01,781.18,0.875]
[1754600415446,0.85573789,782.0,781.18,0.875]
[1754600415646,0.85573789,781.99,781.18,0.875]
[1754600415845,0.85573789,781.98,781.18,0.875]
[1754600416141,0.85573789,781.97,781.18,0.875]
[1754600416345,0.22263878,782.02,781.18,0.875]
[1754600416346,0.85573789,781.96,781.18,0.875]
[1754600416541,0.85573789,781.95,781.18,0.875]
[1754600416744,0.85573789,781.94,781.18,0.875]
[1754600416941,0.85573789,781.93,781.18,0.875]
[1754600417146,0.85573789,781.92,781.18,0.875]
[1754600417345,0.85573789,781.91,781.18,0.875]
[1754600417646,0.85573789,781.9,781.19,0.766]
[1754600418242,0.85573789,781.9,781.2,0.872]
[1754600424455,0.85711593,781.89,781.2,0.872]
[1754600424655,0.85711593,781.88,781.2,0.872]
[1754600424855,0.85711593,781.87,781.2,0.872]
[1754600425051,0.85711593,781.86,781.2,0.872]
[1754600425255,0.85711593,781.85,781.2,0.872]
[1754600425551,0.85711593,781.84,781.2,0.872]
[1754600425751,0.85711593,781.83,781.2,0.872]
[1754600425956,0.85711593,781.82,781.2,0.872]
[1754600426156,0.85711593,781.81,781.2,0.872]
[1754600426457,0.85711593,781.8,781.2,0.872]
[1754600426756,0.85711593,781.79,781.2,0.872]
[1754600426954,0.85711593,781.78,781.2,0.872]
[1754600427257,0.85711593,781.77,781.2,0.872]
[1754600427457,0.85739446,781.76,781.2,0.872]
[1754600427657,0.85739446,781.75,781.2,0.872]
[1754600427855,0.85739446,781.74,781.2,0.872]
[1754600428154,0.85739446,781.73,781.2,0.872]
[1754600428354,0.85660472,781.88,781.2,0.872]
[1754600428654,0.8574821,781.87,781.2,0.872]
[1754600428856,0.8574821,781.86,781.2,0.872]
[1754600429058,0.8574821,781.85,781.2,0.872]
[1754600429258,0.8574821,781.84,781.2,0.872]
[1754600429458,0.8574821,781.83,781.2,0.872]
[1754600429654,0.8574821,781.82,781.2,0.872]
[1754600429853,0.8574821,781.81,781.2,0.872]
[1754600430060,0.8574821,781.8,781.2,0.872]
[1754600430260,0.85757487,781.79,781.2,0.872]
[1754600430558,0.85757487,781.78,781.2,1.857]
[1754600430758,0.85757487,781.77,781.2,1.857]
[1754600430955,0.85757487,781.76,781.2,1.857]
[1754600431157,0.85757487,781.75,781.2,1.857]
[1754600431360,0.85660472,781.87,781.2,1.857]
[1754600431361,0.85757487,781.74,781.2,1.857]
[1754600431561,0.892,781.91,781.2,1.857]
[1754600431562,0.85757487,781.73,781.2,1.857]
[1754600431860,0.85660472,781.88,781.2,1.857]
[1754600432057,0.85778003,781.87,781.2,1.857]
[1754600432360,0.85778003,781.86,781.2,1.857]
[1754600432556,0.85778003,781.85,781.2,1.857]
[1754600432761,0.85778003,781.84,781.2,1.857]
[1754600433061,0.85778003,781.83,781.2,1.857]
[1754600433258,0.85660472,781.87,781.2,1.857]
[1754600433459,0.85800491,781.86,781.2,1.857]
[1754600433660,0.85800491,781.85,781.2,1.857]
[1754600433863,0.85800491,781.84,781.2,1.857]
[1754600434161,0.85800491,781.83,781.2,1.857]
[1754600434360,0.85800491,781.82,781.2,1.857]
[1754600434559,0.85800491,781.81,781.2,1.857]
[1754600434761,0.85800491,781.8,781.2,1.857]
[1754600434962,0.85800491,781.79,781.2,1.857]
[1754600435265,0.85800491,781.78,781.2,1.857]
[1754600435467,0.85800491,781.77,781.2,1.857]
[1754600435667,0.85800491,781.76,781.2,1.857]
[1754600435864,0.85800491,781.75,781.2,1.857]
[1754600436064,0.85800491,781.74,781.2,1.857]
[1754600436268,0.85800491,781.73,781.2,1.857]
[1754600436563,0.85800491,781.72,781.2,1.857]
[1754600436765,0.85800491,781.71,781.2,1.857]
[1754600436966,0.85800491,781.7,781.2,1.857]
[1754600437161,0.85660472,781.85,781.2,1.857]
[1754600437467,0.85846118,781.84,781.2,1.857]
[1754600437765,0.85846118,781.83,781.2,1.857]
[1754600437964,0.85846118,781.82,781.2,1.857]
[1754600438164,0.85846118,781.81,781.2,1.857]
[1754600438368,0.85846118,781.8,781.21,0.996]
[1754600438564,0.85846118,781.79,781.21,0.996]
[1754600438763,0.85846118,781.78,781.21,0.996]
[1754600438966,0.85846118,781.77,781.21,0.996]
[1754600439164,0.85846118,781.76,781.21,0.996]
[1754600439365,0.85846118,781.75,781.21,0.996]
[1754600439665,0.85846118,781.74,781.21,1.85034736]
[1754600439865,0.85846118,781.73,781.21,1.85034736]
[1754600440064,0.85846118,781.72,781.21,1.85034736]
[1754600440269,0.85846118,781.71,781.22,0.85434736]
[1754600440472,0.85846118,781.7,781.22,0.85434736]
[1754600440672,0.85846118,781.69,781.21,1.85034736]
[1754600440872,0.85846118,781.68,781.21,1.85034736]
[1754600441071,0.85660472,781.83,781.21,1.85034736]
[1754600441271,0.85660472,781.83,781.22,0.85434736]
[1754600441272,0.85897945,781.82,781.22,0.85434736]
[1754600441470,0.85897945,781.81,781.22,0.85434736]
[1754600442070,0.85660472,781.82,781.22,0.85434736]
[1754600442374,1.71592575,781.81,781.23,1.55534736]
[1754600442570,0.85932103,781.8,781.23,1.55534736]
[1754600442874,0.85933485,781.79,781.23,1.55534736]
[1754600443073,0.85933485,781.78,781.23,1.55534736]
[1754600443273,0.85933485,781.77,781.24,0.85434736]
[1754600443474,0.85933485,781.76,781.24,0.85434736]
[1754600443770,0.85933485,781.75,781.24,0.85434736]
[1754600444071,0.85933485,781.74,781.24,0.85434736]
[1754600444271,0.85933485,781.73,781.24,0.85434736]
[1754600444574,0.85933485,781.72,781.25,0.85434736]
[1754600444768,0.85660472,781.8,781.25,0.85434736]
[1754600444769,0.85933485,781.71,781.25,0.85434736]
[1754600444974,0.85933485,781.7,781.25,0.85434736]
[1754600445169,0.85933485,781.69,781.25,0.85434736]
[1754600445373,0.85933485,781.68,781.25,0.85434736]
[1754600445571,0.85933485,781.67,781.25,0.85434736]
[1754600445772,0.85933485,781.66,781.25,0.85434736]
[1754600445971,0.85933485,781.65,781.25,0.85434736]
[1754600446277,0.85660472,781.81,781.25,0.85434736]
[1754600446477,0.85977192,781.8,781.25,0.85434736]
[1754600446672,0.85977192,781.79,781.25,0.85434736]
[1754600446876,0.85977192,781.78,781.26,0.85434736]
[1754600447176,0.85977192,781.77,781.26,0.85434736]
[1754600447477,0.892,781.91,781.23,0.701]
[1754600447676,0.85969962,781.9,781.23,0.701]
[1754600447876,0.85969962,781.89,781.23,0.701]
[1754600448072,0.892,781.91,781.23,0.701]
[1754600448273,0.85966512,781.9,781.23,0.701]
[1754600448479,0.85966512,781.89,781.23,0.701]
[1754600448674,0.892,781.91,781.23,0.701]
[1754600448973,0.85956491,781.9,781.27,0.85434736]
[1754600449177,0.85956491,781.89,781.27,0.85434736]
[1754600449377,0.892,781.91,781.27,0.85434736]
[1754600449779,0.892,781.91,781.28,0.85434736]
[1754600451778,0.892,781.91,781.3,0.85434736]
[1754600452275,0.892,781.91,781.29,0.85434736]
[1754600452476,0.892,781.91,781.31,0.872]
[1754600452676,0.22263878,782.02,781.31,0.872]
[1754600452878,0.85917209,782.01,781.31,0.872]
[1754600453079,0.85917209,782.0,781.31,0.872]
[1754600453280,0.85917209,781.99,781.31,0.872]
[1754600453479,0.85917209,781.98,781.31,0.872]
[1754600453680,0.85917209,781.97,781.31,0.872]
[1754600453879,0.85917209,781.96,781.31,0.872]
[1754600454084,0.22263878,782.02,781.31,0.872]
[1754600454284,0.85911509,782.01,781.31,0.872]
[1754600454585,1.52511509,782.0,781.31,0.872]
[1754600454881,0.85911509,781.99,781.31,0.872]
[1754600455085,0.85911509,781.98,781.31,0.872]
[1754600455281,0.85911509,781.97,781.31,0.872]
[1754600455480,0.85911509,781.96,781.31,0.872]
[1754600455681,0.85911509,781.95,781.31,0.872]
[1754600455984,0.85911509,781.94,781.31,0.872]
[1754600456183,0.666,782.0,781.31,0.872]
[1754600456382,0.85909223,781.99,781.31,0.872]
[1754600456581,0.85909223,781.98,781.31,0.872]
[1754600456780,0.85909223,781.97,781.31,0.872]
[1754600456986,0.85909223,781.96,781.31,0.872]
[1754600457181,0.85909223,781.95,781.31,0.872]
[1754600457386,0.85909223,781.94,781.31,0.872]
[1754600457685,0.666,782.0,781.31,0.872]
[1754600457881,0.85901202,781.99,781.31,0.872]
[1754600458084,0.85901202,781.98,781.31,0.872]
[1754600458387,0.85901202,781.97,781.31,0.872]
[1754600458584,0.85901202,781.96,781.31,0.872]
[1754600458787,0.85901202,781.95,781.31,0.872]
[1754600458984,0.85901202,781.94,781.31,0.872]
[1754600459188,0.666,782.0,781.31,0.872]
[1754600459489,0.85901449,781.99,781.31,0.872]
[1754600459683,0.85901449,781.98,781.31,0.872]
[1754600459985,0.85901449,781.97,781.31,0.872]
[1754600460188,0.85901449,781.96,781.31,0.872]
[1754600460384,0.666,782.0,781.31,0.872]
[1754600460585,0.8590282,781.99,781.31,0.872]
[1754600460786,0.8590282,781.98,781.31,0.872]
[1754600460987,0.666,782.0,781.31,0.872]
[1754600461190,0.8590282,781.99,781.31,0.872]
[1754600461489,0.666,782.0,781.31,0.872]
[1754600462686,0.85997222,781.99,781.31,0.872]
[1754600462888,0.666,782.0,781.31,0.872]
[1754600463088,0.85997222,781.99,781.31,0.872]
[1754600463287,0.666,782.0,781.31,0.872]
[1754600468690,0.22257684,782.11,781.31,0.872]
[1754600468889,0.85958375,782.1,781.31,0.872]
[1754600469194,0.85958375,782.09,781.31,0.872]
[1754600469395,0.85958375,782.08,781.26,0.85434736]
[1754600469689,0.85958375,782.07,781.26,0.85434736]
[1754600469894,0.85958375,782.06,781.28,0.85434736]
[1754600470094,0.85958375,782.05,781.27,0.85434736]
[1754600470295,0.85958375,782.04,781.27,0.85434736]
[1754600470492,0.85958375,782.03,781.27,0.85434736]
[1754600470692,0.85958375,782.02,781.27,0.85434736]
[1754600470897,0.85958375,782.01,781.27,0.85434736]
[1754600471093,0.85958375,782.0,781.27,0.85434736]
[1754600471397,0.85943997,781.99,781.34,0.85434736]
[1754600471596,0.85943997,781.98,781.34,0.85434736]
[1754600471792,0.85943997,781.97,781.34,0.85434736]
[1754600471997,0.85943997,781.96,781.34,0.85434736]
[1754600472199,1.007,782.01,781.34,0.85434736]
[1754600472396,0.85940079,782.0,781.33,0.85434736]
[1754600472597,0.85940079,781.99,781.33,0.85434736]
[1754600472895,0.85940079,781.98,781.34,0.735]
[1754600473094,0.85940079,781.97,781.34,0.735]
[1754600473297,0.85940079,781.96,781.34,0.735]
[1754600473496,0.85940079,781.95,781.35,0.85434736]
[1754600473697,0.85940079,781.94,781.35,0.85434736]
[1754600473898,1.007,782.01,781.35,0.85434736]
[1754600474099,0.85936839,782.0,781.35,0.85434736]
[1754600474303,0.85936839,781.99,781.35,0.85434736]
[1754600474504,0.85936839,781.98,781.35,0.85434736]
[1754600474700,0.85936839,781.97,781.35,0.85434736]
[1754600474900,0.85936839,781.96,781.35,0.85434736]
[1754600475100,0.85936839,781.95,781.35,0.85434736]
[1754600475299,1.007,782.01,781.35,0.85434736]
[1754600475500,0.85932977,782.0,781.35,0.85434736]
[1754600475705,0.85932977,781.99,781.35,0.85434736]
[1754600475900,0.85932977,781.98,781.35,0.85434736]
[1754600476101,0.85932977,781.97,781.35,0.85434736]
[1754600476301,0.85932977,781.96,781.35,0.85434736]
[1754600476506,0.85932977,781.95,781.35,0.85434736]
[1754600476805,1.007,782.01,781.35,0.85434736]
[1754600477014,0.85930861,782.0,781.35,0.85434736]
[1754600477205,0.85930861,781.99,781.35,0.85434736]
[1754600477407,1.007,782.01,781.35,0.85434736]
[1754600477607,0.85929674,782.0,781.35,0.85434736]
[1754600477802,0.85929674,781.99,781.36,0.969]
[1754600478003,0.85929674,781.98,781.36,0.969]
[1754600478306,0.85929674,781.97,781.36,0.969]
[1754600478505,0.85929674,781.96,781.36,0.969]
[1754600478705,0.85929674,781.95,781.36,0.969]
[1754600478906,1.007,782.01,781.36,0.969]
[1754600479104,0.85928879,782.0,781.36,0.969]
[1754600479409,0.85928879,781.99,781.36,0.969]
[1754600479606,1.007,782.01,781.36,0.969]
[1754600479607,0.85928879,781.98,781.36,0.969]
[1754600479807,0.85928879,781.97,781.36,0.969]
[1754600480004,0.85928879,781.96,781.36,0.969]
[1754600480203,0.85928879,781.95,781.37,1.009]
[1754600480405,1.007,782.01,781.37,1.009]
[1754600480707,0.8592855,782.0,781.37,1.009]
[1754600481007,0.8592855,781.99,781.37,1.009]
[1754600481309,0.8592855,781.98,781.39,0.85434736]
[1754600481505,0.8592855,781.97,781.39,0.85434736]
[1754600481806,1.007,782.01,781.39,0.85434736]
[1754600482017,0.85929526,782.0,781.37,1.009]
[1754600482209,0.85929526,781.99,781.37,1.009]
[1754600482407,0.85929526,781.98,781.37,1.009]
[1754600482710,0.85929526,781.97,781.37,1.009]
[1754600483009,0.85929526,781.96,781.37,1.009]
[1754600483210,0.85929526,781.95,781.37,1.009]
[1754600483406,0.85929526,781.94,781.37,1.009]
[1754600483604,0.85929526,781.93,781.37,1.009]
[1754600483910,1.007,782.01,781.37,1.009]
[1754600483911,0.85929526,781.92,781.37,1.009]
[1754600484209,0.85929526,781.91,781.37,1.009]
[1754600484411,0.85929526,781.9,781.37,1.009]
[1754600484610,0.85929526,781.89,781.37,1.009]
[1754600484911,0.85929526,781.88,781.37,1.009]
[1754600485206,0.85929526,781.87,781.37,1.009]
[1754600485406,0.85660472,781.97,781.37,1.009]
[1754600485407,0.85929526,781.86,781.37,1.009]
[1754600485610,0.85929526,781.85,781.37,1.009]
[1754600485907,0.85929526,781.84,781.37,1.009]
[1754600486106,0.85929526,781.83,781.37,1.009]
[1754600486308,0.85660472,781.97,781.37,1.009]
[1754600486507,0.859548,781.96,781.37,1.009]
[1754600486704,0.859548,781.95,781.37,1.009]
[1754600486904,0.859548,781.94,781.37,1.009]
[1754600487105,0.859548,781.93,781.37,1.009]
[1754600487306,0.859548,781.92,781.37,1.009]
[1754600487511,0.859548,781.91,781.37,1.009]
[1754600487709,0.859548,781.9,781.37,1.009]
[1754600487908,0.859548,781.89,781.37,1.009]
[1754600488112,0.859548,781.88,781.37,1.009]
[1754600488309,0.859548,781.87,781.37,1.009]
[1754600488514,0.859548,781.86,781.37,1.009]
[1754600488710,0.859548,781.85,781.37,1.009]
[1754600488911,0.859548,781.84,781.37,1.009]
[1754600489110,0.859548,781.83,781.37,1.009]
[1754600489315,0.859548,781.82,781.37,1.009]
[1754600489510,0.859548,781.81,781.37,1.009]
[1754600489710,0.859548,781.8,781.37,1.009]
[1754600489912,0.859548,781.79,781.37,1.009]
[1754600490111,0.859548,781.78,781.37,1.009]
[1754600490409,0.859548,781.77,781.37,1.009]
[1754600490612,0.859548,781.76,781.37,1.009]
[1754600490816,0.859548,781.75,781.37,1.009]
[1754600491011,0.85660472,781.97,781.37,1.009]
[1754600491214,0.85966182,781.96,781.37,1.009]
[1754600491415,0.85966182,781.95,781.37,1.009]
[1754600491715,0.85966182,781.94,781.37,1.009]
[1754600491916,0.85966182,781.93,781.37,1.009]
[1754600492117,0.85966182,781.92,781.37,1.009]
[1754600492314,0.85966182,781.91,781.37,1.009]
[1754600492617,0.85966182,781.9,781.37,1.009]
[1754600492812,0.85966182,781.89,781.37,1.009]
[1754600493118,0.85966182,781.88,781.37,1.009]
[1754600493314,0.85966182,781.87,781.37,1.009]
[1754600493515,0.85966182,781.86,781.37,1.009]
[1754600493714,0.85966182,781.85,781.37,1.009]
[1754600494018,0.85966182,781.84,781.37,1.009]
[1754600494213,0.85966182,781.83,781.37,1.009]
[1754600494417,0.85966182,781.82,781.37,1.009]
[1754600494615,0.85966182,781.81,781.37,1.009]
[1754600494817,0.85966182,781.8,781.37,1.009]
[1754600495020,0.85966182,781.79,781.37,1.009]
[1754600495220,0.85966182,781.78,781.37,1.009]
[1754600495415,0.85929167,781.77,781.37,1.009]
[1754600495617,0.85660472,781.99,781.37,1.009]
[1754600495812,0.85929167,781.98,781.37,1.009]
[1754600496017,0.85929167,781.97,781.37,1.009]
[1754600496220,0.85929167,781.96,781.37,1.009]
[1754600496419,0.85929167,781.95,781.37,1.009]
[1754600501223,0.85660472,781.93,781.37,1.009]
[1754600501424,0.85929167,781.92,781.37,1.009]